Cogmind - Beta 11 @@@ ROGUE MODE // 2022.04.13 @ 19:11:07 Player: Momo Result: Destroyed by as-21559 with Assembled Rifle Performance ------------- Evolutions (0) 0 Regions Visited (2) 400 Robots Destroyed (7) 35 Value Destroyed (131) 131 Prototype IDs (0) 0 Alien Tech Used (0) 0 Bonus (0) 0 TOTAL SCORE: 566 Bonus ------- None Cogmind --------- Core Integrity 0/250 Matter 300/300 Energy 122/125 System Corruption 0% Temperature Cool (6) Movement Flying (37) Location -10/Mines Parts ------- > --- POWER (1) -------- Light Ion Engine > --- PROPULSION (2) --- Flight Unit Flight Unit > --- UTILITY (2) ------ Terrain Scanner > --- WEAPON (2) ------- Small Laser Light Assault Rifle > --- INVENTORY (5) ---- Flight Unit Flight Unit Small Storage Unit Signal Interpreter Improved Terrain Scanner Peak State ------------ > --- POWER ------------ Ion Engine > --- PROPULSION ------- Compact Wheel > --- UTILITY ---------- Small Storage Unit Weapon Shielding > --- WEAPON ----------- EM Pulse Gun Assault Rifle > --- INVENTORY -------- Light Assault Rifle [Rating: 6] Favorites ----------- Power Light Ion Engine Engine Light Ion Engine Propulsion Compact Wheel Leg Aluminum Leg Wheel Compact Wheel Flight Unit Flight Unit Utility Small Storage Unit Device Terrain Scanner Storage Small Storage Unit Protection Weapon Shielding Weapon Light Assault Rifle Energy Gun Small Laser Ballistic Gun Light Assault Rifle Build | -11 -10 -10 ------- Run | Scr Mat Min Slots Evolved . | . . . Power . | . . . Propulsion . | . . . Utility . | . . . Weapon . | . . . Parts Attached 16 | 6 2 8 Power 3 | 1 1 1 Engine 3 | 1 1 1 Core . | . . . Reactor . | . . . Propulsion 4 | 1 . 3 Treads . | . . . Leg 1 | . . 1 Wheel 1 | 1 . . Hover . | . . . Flight 2 | . . 2 Utility 3 | 1 1 1 Device 1 | . . 1 Storage 1 | 1 . . Processor . | . . . Hackware . | . . . Protection 1 | . 1 . Artifact . | . . . Weapon 6 | 3 . 3 Energy Gun 2 | 1 . 1 Energy Cannon . | . . . Ballistic Gun 4 | 2 . 2 Ballistic Cannon . | . . . Launcher . | . . . Special Weapon . | . . . Impact Weapon . | . . . Slashing Weapon . | . . . Piercing Weapon . | . . . Special Melee Weapon . | . . . Unidentified Prototypes . | . . . Parts Lost 6 | . . 6 Power 1 | . . 1 Propulsion 1 | . . 1 Utility 1 | . . 1 Weapon 3 | . . 3 Highest Loss Streak 4 | . . 4 To Critical Strikes . | . . . Average Slot Usage (%) 68 | . 80 65 Engine 8 | . 14 6 Leg 3 | . . 4 Wheel 7 | . 14 5 Flight 4 | . . 6 Storage 11 | . 14 10 Protection 4 | . 9 3 Energy Gun 9 | . 14 7 Ballistic Gun 18 | . 14 19 Naked Turns . | . . . Heaviest Build 15 | 14 15 13 Greatest Support 16 | 16 16 16 Greatest Overweight (x) 2 | 2 . 2 Average Overweight (x) . | . . . Largest Inventory Capacity 8 | 8 8 8 Average Capacity 7 | 6 8 7 Most Carried 5 | 1 4 5 Average Carried 3 | . 2 4 Final Capacity 8 | 8 8 5 Final Carried 5 | 1 4 5 Class Distribution -------------------- 84% | Mutant 15% | Scavenger-Mutant Dominant Class ---------------- Mutant | -10/Materials Mutant | -10/Mines Resources | -11 -10 -10 ----------- Run | Scr Mat Min Matter Collected 445 | 138 59 248 Remotely . | . . . Salvage Created 214 | . 59 155 Parts 16 | . 8 8 Haulers Intercepted . | . . . Recyclers Shooed . | . . . Parts Field Recycled . | . . . Retrieved Matter . | . . . Parts Self-Destructed . | . . . Prevented . | . . . Kills | -11 -10 -10 ------- Run | Scr Mat Min Combat Hostiles Destroyed 9 | . 3 6 Guns 9 | . 3 6 Classes Destroyed 3 | . 1 2 Swarmer 5 | . 3 2 Grunt 2 | . . 2 Assembled 2 | . . 2 Best Kill Streak 2 | . 2 2 Combat Bots Only 2 | . 2 2 Max Kills in Single Turn 1 | . 1 1 Gunslinging . | . . . Exploded . | . . . Melee . | . . . Uniques/NPCs Destroyed . | . . . Combat | -11 -10 -10 -------- Run | Scr Mat Min Damage Taken 762 | . 224 538 Core 254 | . 68 186 Absorbed by Shields . | . . . Redirected to Shielding 53 | . 28 25 Core Remaining (%) 100 | 100 . . Volleys Fired 43 | . 11 32 Largest 2 | . 2 2 Hottest 60 | . 60 60 Shots Fired 75 | . 22 53 Gun 75 | . 22 53 Cannon . | . . . Launcher . | . . . Special . | . . . Kinetic 59 | . 11 48 Thermal 2 | . . 2 Explosive . | . . . Electromagnetic 14 | . 11 3 Robot Hit Streak 18 | . 2 18 Robot Miss Streak 9 | . 9 3 Penetration Max . | . . . Secondary Targets 1 | . 1 . Max Gunslinging Chain 1 | . 1 . Shots Hit Robots 47 | . 8 39 Core Hits 15 | . 3 12 Critical Kills . | . . . Critical Parts Destroyed . | . . . Critical Strikes . | . . . Melee Attacks . | . . . Impact . | . . . Slashing . | . . . Piercing . | . . . Sneak Attacks . | . . . Combat Hostiles . | . . . Follow-up Attacks . | . . . Damage Inflicted 463 | . 100 363 Guns 463 | . 100 363 Cannons . | . . . Explosions . | . . . Melee . | . . . Ramming . | . . . Kinetic 429 | . 78 351 Thermal . | . . . Explosive . | . . . Electromagnetic 34 | . 22 12 Impact . | . . . Slashing . | . . . Piercing . | . . . Highest Corruption . | . . . Average Corruption . | . . . Corruption Purged . | . . . Corruption Blocked . | . . . Overload Shots . | . . . Overflow Damage . | . . . Projectiles . | . . . Explosions . | . . . Melee . | . . . Knockbacks . | . . . Impact . | . . . Kinetic . | . . . Secondary . | . . . Self-Inflicted Damage . | . . . Shots . | . . . Rammed . | . . . Targets Rammed . | . . . Kicked . | . . . Crushed . | . . . Highest Temperature 22 | . . 22 Average Temperature 6 | . . 6 Received Heat Transfer 207 | . . 207 Siege Activations . | . . . Robots Corrupted . | . . . Combat Hostiles . | . . . Parts Fried . | . . . Impact Corruptions . | . . . Robots Melted . | . . . Combat Hostiles . | . . . Parts Melted . | . . . Heat Transferred . | . . . Parts Sabotaged . | . . . Parts Stolen . | . . . Parts Stripped . | . . . Power Chain Reactions . | . . . Missiles Intercepted . | . . . Alert | -11 -10 -10 ------- Run | Scr Mat Min Peak Influence 115 | . 78 115 Initial 30 | . . 30 Average 71 | . 40 89 Maximum Alert Level . | . . . Low Security (%) 100 | 100 100 100 Level 1 . | . . . Level 2 . | . . . Level 3 . | . . . Level 4 . | . . . Level 5 . | . . . High Security . | . . . Max Security . | . . . Squads Dispatched . | . . . Investigation . | . . . Extermination . | . . . Reinforcement . | . . . Assault . | . . . Garrison . | . . . Intercept . | . . . Searches Triggered . | . . . Construction Impeded . | . . . Haulers Reinforced . | . . . Active Scanning Responses . | . . . Cargo Convoy Interrupts . | . . . Stealth | -11 -10 -10 --------- Run | Scr Mat Min Distress Signals . | . . . Communications Jammed . | . . . Distress Signals . | . . . Times Spotted 19 | . 4 15 Peak Tracking Total 3 | . 3 3 Tactical Retreats 4 | . . 4 Traps | -11 -10 -10 ------- Run | Scr Mat Min Traps Triggered . | . . . Indirectly . | . . . Trap Hack Attempts . | . . . Triggered . | . . . Disarmed . | . . . Reprogrammed . | . . . Reused . | . . . Traps Extracted . | . . . Installed . | . . . Triggered . | . . . Machines | -11 -10 -10 ---------- Run | Scr Mat Min Machines Disabled . | . . . Max in Single Turn . | . . . Machines Sabotaged . | . . . Garrisons Compromised . | . . . Overloaded Fab Kills . | . . . Hacking | -11 -10 -10 --------- Run | Scr Mat Min Machines Accessed 1 | . 1 . Terminals 1 | . 1 . Fabricators . | . . . Repair Stations . | . . . Recycling Units . | . . . Scanalyzers . | . . . Garrison Access . | . . . Total Hacks 3 | . 3 . Successful 2 | . 2 . Failed 1 | . 1 . Catastrophic 1 | . 1 . Database Lockouts . | . . . Manual 2 | . 2 . Terminals 3 | . 3 . Fabricators . | . . . Repair Stations . | . . . Recycling Units . | . . . Scanalyzers . | . . . Garrison Access . | . . . Terminal Hacks 2 | . 2 . Branch Access Points 1 | . 1 . Reinforcement Status 1 | . 1 . Fabricator Hacks . | . . . Repair Station Hacks . | . . . Recycling Unit Hacks . | . . . Scanalyzer . | . . . Garrison Access Hacks . | . . . Unauthorized Hacks . | . . . Terminals . | . . . Fabricators . | . . . Repair Stations . | . . . Recycling Units . | . . . Scanalyzers . | . . . Garrison Access . | . . . Data Cores Recovered . | . . . Used . | . . . Hacking Detections 1 | . 1 . Full Trace Events . | . . . Feedback Events . | . . . Feedback Blocked . | . . . Robot Schematics Acquired . | . . . Robots Built . | . . . Authchips . | . . . Time . | . . . Total Robot Build Rating . | . . . Part Schematics Acquired . | . . . Parts Built . | . . . Authchips . | . . . Time . | . . . Total Part Build Rating . | . . . Parts Repaired . | . . . Time . | . . . Parts Recycled . | . . . Recycled Matter . | . . . Retrieved Matter . | . . . Retrieved Components . | . . . Parts Scanalyzed . | . . . Part Schematics Acquired . | . . . Parts Damaged . | . . . Bothacking | -11 -10 -10 ------------ Run | Scr Mat Min Used RIF Installer . | . . . Robots Hacked . | . . . Non-combat . | . . . Combat . | . . . Robot Hacks Applied . | . . . Relay Couplers Released . | . . . Fabnet Peak Effective % . | . . . Robots Rewired . | . . . Allies Hacked . | . . . Hacks Repelled . | . . . Allies | -11 -10 -10 -------- Run | Scr Mat Min Total Allies . | . . . Largest Group . | . . . Highest-Rated Group . | . . . Highest-Rated Ally . | . . . Total Orders . | . . . Ally Attacks . | . . . Total Damage . | . . . Kills . | . . . Allies Corrupted . | . . . Allies Melted . | . . . Intel | -11 -10 -10 ------- Run | Scr Mat Min Robot Analysis Total . | . . . Derelict Logs Recovered 1 | . . 1 Drone Launches . | . . . Drone Recoveries . | . . . Exploration | -11 -10 -10 ------------- Run | Scr Mat Min Turns Passed 579 | 43 127 409 Spaces Moved 540 | 35 88 417 Core 17 | 12 . 5 Treads . | . . . Legs 81 | . . 81 Wheels 219 | 23 88 108 Hover . | . . . Flight 223 | . . 223 Fastest Speed 37 | 50 100 37 Average Speed 77 | 97 100 70 Slowest Speed 150 | 150 100 150 Overloaded Moves . | . . . Propulsion Burnouts . | . . . Robots Hopped 1 | . . 1 Cave-ins Triggered . | . . . Exploration Rate (%) 33 | 4 21 76 Regions Visited 2 Branch Regions 1 Pre-discovered Areas . | . . . Known Exits Taken 1 | . 1 . Unknown Exits Taken 1 | 1 . . Scrap Searched 1 | . . 1 Spaces Dug . | . . . Terrain Destroyed . | . . . Melee . | . . . Projectile . | . . . AOE . | . . . Terrain Rammed . | . . . Walls Destroyed . | . . . Machines Disabled . | . . . Actions | -11 -10 -10 --------- Run | Scr Mat Min Total 627 | 40 104 483 Wait 21 | . . 21 Move 536 | 34 87 415 Hop 1 | . . 1 Pick Up 7 | . 3 4 Fast Attach 11 | 5 2 4 Attach 4 | . . 4 Detach 1 | . . 1 Swap 1 | 1 . . Drop 2 | . 1 1 Fire 43 | . 11 32 Melee . | . . . Ram . | . . . Kick . | . . . Crush . | . . . Escape Stasis . | . . . Rewire . | . . . Trap . | . . . Miscellaneous . | . . . Route ------- -11/Scrapyard -10/Materials -10/Mines (discovered 2 exits: [*Mat x2]) History --------- Turn | Location | Event 15 | -11/Scrapyard | Discovered new exit (range 15) 44 | -11/Scrapyard | Entered Materials 58 | -10/Materials | Identified exit to Mines 171 | -10/Materials | Entered Mines 172 | -10/Mines | Assembled infested the area 305 | -10/Mines | Build established: Mutant 344 | -10/Mines | Core integrity fell below 50% 361 | -10/Mines | Core integrity fell below 20% 372 | -10/Mines | Lost 4 parts (1p1n2w) 400 | -10/Mines | Discovered new exit (range 8) 409 | -10/Mines | Learned Materials garrison access intel 574 | -10/Mines | Discovered new exit (range 5) 580 | -10/Mines | Destroyed by as-21559 with Assembled Rifle Last Messages --------------- 00485_ R-06 Scavenger destroyed. 00488_ K-01 Serf collects debris. 00492_ Dropped Aluminum Leg. 00492_ K-01 Serf collects debris. 00493_ K-01 Serf destroyed. 00526_ Acquired 13 matter. 00526_ Acquired 7 matter. 00530_ Searching scrap... 00530_ Found Sml. Laser. 00530_ Found Lgt. Ion Engine. 00530_ Found Med. Storage Unit. 00530_ Found Lgt. Ion Engine. 00530_ Found 13 Matter. 00544_ Acquired Imp. Terrain Scanner. 00554_ Acquired Terrain Scanner. 00556_ Acquired Lgt. Ion Engine. 00562_ Acquired 14 matter. 00567_ Acquired 6 matter. 00569_ K-01 Serf destroyed. 00574_ EXIT=FOUND Map ----- +----------------------------------------------------+ | #??## #??# #???? % #? | | #???## % #??# #????? ! #?? | | ##????# %#??# #?????#*%= #???? | | ??????# ==%* # ####### #?????? | | ??????## %## =*=#??????? | | ???????# ## !!%#??????? | | ???????## ########### *!*!##?????? | | ????????####?????????##=%*!%#?????? | | ??????????????????????##%*!!#?????? | | ???????????????????????###%*#?????? | | ?????????????????#########!%#?????? | | ?????????????????# %%|=#?????? | | ?????????????????# #######!!#?????? | | ?????????????????# #?????# #?????? | | ?????????????????# ####?? #????? | | ?????????????????# #????? a #?#??? | | ?????????????????# #????? #????# | | ?????????????##### ###???#% #????? | | ?????????????# %=* ##?## ##????? | | ?????????????#!!% ### ##?????? | | ?????????????##=<% % #??????? | | ??????????????##% % = ##??????? | | ??????????????#### * #??#????? | | ?????????????????## """ ####????? | | ?????????????????## % """ ##???? | | ????????????????## """@ #???? | | ????????????????# #???? | | ???????????????# #### ##???? | | ??????????????# ##???###????? | | ??????????????# ##???????????? | | ?????????????### ##????????????? | | ???????????????######?????????????? | | ??????????????????????????????????? | | ??????????????????????????????????? | | ??????????????????????????????????? | | ??????????????????????????????????? | | | | | | | | | | | | | | | | | | | | | | | | | | | | | +----------------------------------------------------+ Best States ------------- Heat Dissipation 25 Energy Generation 10 Energy Capacity 250 Matter Stores 300 Matter Capacity 300 Sight Range 16 Terrain Scan Range 14 Terrain Scan Density 10 Weapon Shielding 33 Evasion (%) 62 Item Schematics ----------------- None Robot Schematics ------------------ None Fabricated ------------ Nothing Alien Tech Used ----------------- None Achievements -------------- None Challenges ------------ None Game ------ Seed MediumSpliceRipper Manual? 0 Play Time 00:08:36 Cumulative 242.2 hours Start 2022.04.13 @ 12:57:26 End 2022.04.13 @ 19:11:07 Sessions 2 Manual Loads 0 Difficulty Rogue Special Mode None Game No. 118 Rogue 114 Adventurer 0 Explorer 4 Win Type - Total 14 Types 4/0/2/2/1/2/3/0/0 Lore% 71 Gallery% 79 Achievement% 69 Wizard Run 0 Options --------- ASCII 0 Keyboard 0 Movement Mouse Keybinds 0 Fullscreen 1 Font 18/SmallcapsGlow Map View 76x50 Tactical HUD 1 Map Filters NONE Filters NONE Steam 1 RUN: 686c155b-55f3-4626-9ae4-00e9ce7c3c40